[Event "1er Festival international de Cassis 2022"]
[Site "Cassis"]
[Date "2022.05.26"]
[Round "1.6"]
[White "Leccia, Thomas"]
[Black "Flear, Glenn C"]
[Result "1/2-1/2"]
[TimeControl "1 h 30 + 30 s"]
[WhiteElo "1799"]
[BlackElo "2418"]

1. e4 {[%clk 01:30:54]} {[%emt 00:00:05]} e5 {[%clk 01:30:53]} {[%emt
00:00:07]} 2. Nf3 {[%clk 01:31:14]} {[%emt 00:00:12]} Nc6 {[%clk 01:31:16]}
{[%emt 00:00:05]} 3. Bb5 {[%clk 01:31:03]} {[%emt 00:00:41]} a6 {[%clk
01:31:31]} {[%emt 00:00:15]} 4. Ba4 {[%clk 01:31:25]} {[%emt 00:00:09]} Nf6
{[%clk 01:31:52]} {[%emt 00:00:08]} 5. d4 {[%clk 01:31:15]} {[%emt 00:00:40]}
exd4 {[%clk 01:31:14]} {[%emt 00:01:07]} 6. O-O {[%clk 01:31:10]} {[%emt
00:00:35]} Be7 {[%clk 01:30:22]} {[%emt 00:01:21]} 7. e5 {[%clk 01:30:46]}
{[%emt 00:00:55]} Ne4 {[%clk 01:30:31]} {[%emt 00:00:20]} 8. Nxd4 {[%clk
01:30:19]} {[%emt 00:00:58]} O-O {[%clk 01:27:00]} {[%emt 00:04:01]} 9. Nxc6
{[%clk 01:22:51]} {[%emt 00:07:59]} dxc6 {[%clk 01:21:54]} {[%emt 00:05:36]} 10.
c3 {[%clk 01:22:05]} {[%emt 00:01:16]} Qxd1 {[%clk 01:18:37]} {[%emt 00:03:46]}
11. Bxd1 {[%clk 01:18:51]} {[%emt 00:03:44]} Bf5 {[%clk 01:16:49]} {[%emt
00:02:18]} 12. Nd2 {[%clk 01:18:01]} {[%emt 00:01:21]} Nc5 {[%clk 01:16:07]}
{[%emt 00:01:11]} 13. Nb3 {[%clk 01:13:28]} {[%emt 00:05:04]} Nd3 {[%clk
01:14:17]} {[%emt 00:02:18]} 14. Nd4 {[%clk 01:09:02]} {[%emt 00:04:58]} Bg6
{[%clk 01:13:30]} {[%emt 00:01:16]} 15. f4 {[%clk 01:06:42]} {[%emt 00:02:51]}
c5 {[%clk 01:07:28]} {[%emt 00:06:32]} 16. f5 {[%clk 01:04:08]} {[%emt
00:03:03]} cxd4 {[%clk 01:07:02]} {[%emt 00:00:56]} 17. cxd4 {[%clk 01:04:10]}
{[%emt 00:00:29]} Rad8 {[%clk 01:00:48]} {[%emt 00:06:44]} 18. fxg6 {[%clk
01:03:19]} {[%emt 00:01:21]} hxg6 {[%clk 01:00:05]} {[%emt 00:01:13]} 19. Be3
{[%clk 00:56:29]} {[%emt 00:07:20]} c5 {[%clk 00:53:56]} {[%emt 00:06:38]} 20.
dxc5 {[%clk 00:52:58]} {[%emt 00:04:02]} Rd5 {[%clk 00:52:25]} {[%emt
00:02:00]} 21. e6 {[%clk 00:49:50]} {[%emt 00:03:38]} fxe6 {[%clk 00:51:54]}
{[%emt 00:01:01]} 22. Rxf8+ {[%clk 00:44:05]} {[%emt 00:06:16]} Bxf8 {[%clk
00:49:38]} {[%emt 00:02:46]} 23. Bf3 {[%clk 00:42:16]} {[%emt 00:02:19]} Re5
{[%clk 00:44:44]} {[%emt 00:05:24]} 24. Bd4 {[%clk 00:40:18]} {[%emt 00:02:27]}
Bxc5 {[%clk 00:44:19]} {[%emt 00:00:56]} 25. Bxc5 {[%clk 00:40:37]} {[%emt
00:00:11]} Rxc5 {[%clk 00:44:07]} {[%emt 00:00:42]} 26. Bxb7 {[%clk 00:40:43]}
{[%emt 00:00:25]} a5 {[%clk 00:44:24]} {[%emt 00:00:12]} 27. Be4 {[%clk
00:35:19]} {[%emt 00:05:55]} Nxb2 {[%clk 00:35:07]} {[%emt 00:09:47]} 28. Rb1
{[%clk 00:34:07]} {[%emt 00:01:41]} Rb5 {[%clk 00:09:12]} {[%emt 00:26:25]} 29.
Bxg6 {[%clk 00:34:16]} {[%emt 00:00:22]} Rb6 {[%clk 00:09:36]} {[%emt
00:00:06]} 30. Rc1 {[%clk 00:32:46]} {[%emt 00:02:00]} Rb8 {[%clk 00:09:03]}
{[%emt 00:01:04]} 31. Rc6 {[%clk 00:32:20]} {[%emt 00:00:55]} Na4 {[%clk
00:09:02]} {[%emt 00:00:31]} 32. Rxe6 {[%clk 00:31:48]} {[%emt 00:01:02]} Nc3
{[%clk 00:08:56]} {[%emt 00:00:34]} 33. a4 {[%clk 00:18:58]} {[%emt 00:13:23]}
Nxa4 {[%clk 00:08:31]} {[%emt 00:00:54]} 34. Ra6 {[%clk 00:19:12]} {[%emt
00:00:16]} Nc5 {[%clk 00:08:07]} {[%emt 00:00:53]} 35. Rxa5 {[%clk 00:19:11]}
{[%emt 00:00:32]} Nd7 {[%clk 00:07:56]} {[%emt 00:00:40]} 36. h4 {[%clk
00:18:02]} {[%emt 00:01:39]} Nf8 {[%clk 00:07:48]} {[%emt 00:00:38]} 37. Ra6
{[%clk 00:14:43]} {[%emt 00:03:49]} Nxg6 {[%clk 00:08:08]} {[%emt 00:00:10]} 38.
Rxg6 {[%clk 00:15:11]} {[%emt 00:00:02]} Kh7 {[%clk 00:08:17]} {[%emt
00:00:20]} 39. h5 {[%clk 00:15:19]} {[%emt 00:00:23]} Rb5 {[%clk 00:08:24]}
{[%emt 00:00:23]} 40. g4 {[%clk 00:15:42]} {[%emt 00:00:07]} Rb2 {[%clk
00:08:43]} {[%emt 00:00:10]} 41. Rg5 {[%clk 00:13:05]} {[%emt 00:03:09]} Ra2
{[%clk 00:08:44]} {[%emt 00:00:28]} 42. Kf1 {[%clk 00:12:42]} {[%emt 00:00:52]}
Rb2 {[%clk 00:08:51]} {[%emt 00:00:24]} 43. Re5 {[%clk 00:12:12]} {[%emt
00:01:01]} Rb4 {[%clk 00:08:44]} {[%emt 00:00:36]} 44. Rg5 {[%clk 00:12:17]}
{[%emt 00:00:26]} Rb2 {[%clk 00:09:07]} {[%emt 00:00:07]} 45. Rg6 {[%clk
00:12:42]} {[%emt 00:00:05]} Ra2 {[%clk 00:09:24]} {[%emt 00:00:12]} 46. Rg5
{[%clk 00:13:07]} {[%emt 00:00:06]} 1/2-1/2

[Event "1er Festival international de Cassis 2022"]
[Site "Cassis"]
[Date "2022.05.26"]
[Round "1.7"]
[White "Philippe, Guillaume"]
[Black "Konate, Salma"]
[Result "1-0"]
[TimeControl "1 h 30 + 30 s"]
[WhiteElo "2405"]
[BlackElo "1782"]

1. e4 {[%clk 01:30:52]} {[%emt 00:00:06]} c5 {[%clk 01:30:56]} {[%emt
00:00:05]} 2. a3 {[%clk 01:31:17]} {[%emt 00:00:05]} e6 {[%clk 01:31:21]}
{[%emt 00:00:05]} 3. b4 {[%clk 01:31:27]} {[%emt 00:00:20]} cxb4 {[%clk
01:31:27]} {[%emt 00:00:25]} 4. axb4 {[%clk 01:31:52]} {[%emt 00:00:06]} Bxb4
{[%clk 01:30:44]} {[%emt 00:01:13]} 5. c3 {[%clk 01:31:29]} {[%emt 00:00:53]}
Ba5 {[%clk 01:29:32]} {[%emt 00:01:42]} 6. d4 {[%clk 01:31:01]} {[%emt
00:00:58]} Nf6 {[%clk 01:25:06]} {[%emt 00:04:56]} 7. Bd3 {[%clk 01:29:39]}
{[%emt 00:01:52]} Nc6 {[%clk 01:24:25]} {[%emt 00:01:11]} 8. Ne2 {[%clk
01:28:14]} {[%emt 00:01:55]} h6 {[%clk 01:11:05]} {[%emt 00:13:50]} 9. e5
{[%clk 01:24:22]} {[%emt 00:04:22]} Ng8 {[%clk 01:08:34]} {[%emt 00:03:01]} 10.
O-O {[%clk 01:24:20]} {[%emt 00:00:32]} Nge7 {[%clk 01:08:13]} {[%emt
00:00:52]} 11. Ng3 {[%clk 01:21:42]} {[%emt 00:03:08]} Bc7 {[%clk 01:07:39]}
{[%emt 00:01:04]} 12. Nh5 {[%clk 01:21:51]} {[%emt 00:00:21]} g6 {[%clk
01:04:29]} {[%emt 00:03:40]} 13. Nf6+ {[%clk 01:22:03]} {[%emt 00:00:18]} Kf8
{[%clk 01:04:40]} {[%emt 00:00:19]} 14. Na3 {[%clk 01:22:08]} {[%emt 00:00:24]}
Nxe5 {[%clk 00:56:40]} {[%emt 00:08:30]} 15. dxe5 {[%clk 01:20:39]} {[%emt
00:02:00]} Bxe5 {[%clk 00:56:38]} {[%emt 00:00:32]} 16. Ng4 {[%clk 01:20:03]}
{[%emt 00:01:06]} Bg7 {[%clk 00:51:59]} {[%emt 00:05:09]} 17. Nb5 {[%clk
01:17:09]} {[%emt 00:03:24]} h5 {[%clk 00:47:32]} {[%emt 00:04:57]} 18. Ne3
{[%clk 01:17:31]} {[%emt 00:00:08]} a6 {[%clk 00:43:24]} {[%emt 00:04:38]} 19.
Ba3 {[%clk 01:15:40]} {[%emt 00:02:22]} d5 {[%clk 00:31:13]} {[%emt 00:12:41]}
20. Qf3 {[%clk 01:14:52]} {[%emt 00:01:18]} Be5 {[%clk 00:30:51]} {[%emt
00:00:52]} 21. Bxg6 {[%clk 01:14:07]} {[%emt 00:01:14]} f5 {[%clk 00:28:37]}
{[%emt 00:02:43]} 22. Bxf5 {[%clk 01:11:30]} {[%emt 00:03:08]} Kg7 {[%clk
00:23:32]} {[%emt 00:05:35]} 23. Bh3 {[%clk 01:11:11]} {[%emt 00:00:49]} Nc6
{[%clk 00:18:47]} {[%emt 00:05:15]} 24. Nd4 {[%clk 01:09:36]} {[%emt 00:02:06]}
Bxd4 {[%clk 00:17:35]} {[%emt 00:01:42]} 25. cxd4 {[%clk 01:09:58]} {[%emt
00:00:08]} Nxd4 {[%clk 00:17:53]} {[%emt 00:00:12]} 26. Bb2 {[%clk 01:09:26]}
{[%emt 00:01:02]} Qb6 {[%clk 00:17:32]} {[%emt 00:00:50]} 27. Rac1 {[%clk
01:03:54]} {[%emt 00:06:03]} Bd7 {[%clk 00:04:37]} {[%emt 00:13:24]} 28. Bxd4+
{[%clk 01:04:05]} {[%emt 00:00:20]} Qxd4 {[%clk 00:05:00]} {[%emt 00:00:07]} 29.
Rc7 {[%clk 01:04:32]} {[%emt 00:00:03]} Rad8 {[%clk 00:05:14]} {[%emt
00:00:16]} 30. Bxe6 {[%clk 01:04:51]} {[%emt 00:00:11]} Qe5 {[%clk 00:05:08]}
{[%emt 00:00:36]} 31. Qf7+ {[%clk 01:04:16]} {[%emt 00:01:06]} Kh6 {[%clk
00:05:21]} {[%emt 00:00:17]} 32. Nf5+ {[%clk 01:04:44]} {[%emt 00:00:02]} 1-0

[Event "1er Festival international de Cassis 2022"]
[Site "Cassis"]
[Date "2022.05.26"]
[Round "1.8"]
[White "Bonelli Maestracci, Pierre Joseph"]
[Black "Petrosyan, Armen"]
[Result "1/2-1/2"]
[TimeControl "1 h 30 + 30 s"]
[WhiteElo "1767"]
[BlackElo "2396"]

1. e4 {[%clk 01:30:57]} {[%emt 00:00:02]} c6 {[%clk 01:30:51]} {[%emt
00:00:10]} 2. d4 {[%clk 01:31:22]} {[%emt 00:00:04]} d5 {[%clk 01:31:17]}
{[%emt 00:00:04]} 3. exd5 {[%clk 01:31:41]} {[%emt 00:00:10]} cxd5 {[%clk
01:31:42]} {[%emt 00:00:05]} 4. Nf3 {[%clk 01:32:06]} {[%emt 00:00:05]} Nf6
{[%clk 01:32:02]} {[%emt 00:00:10]} 5. Ne5 {[%clk 01:32:31]} {[%emt 00:00:06]}
Nc6 {[%clk 01:31:41]} {[%emt 00:00:52]} 6. Bb5 {[%clk 01:32:43]} {[%emt
00:00:16]} Bd7 {[%clk 01:32:05]} {[%emt 00:00:06]} 7. Nxd7 {[%clk 01:33:03]}
{[%emt 00:00:10]} Qxd7 {[%clk 01:32:32]} {[%emt 00:00:04]} 8. c3 {[%clk
01:33:22]} {[%emt 00:00:10]} a6 {[%clk 01:32:02]} {[%emt 00:01:00]} 9. Ba4
{[%clk 01:32:23]} {[%emt 00:01:30]} e6 {[%clk 01:30:20]} {[%emt 00:02:12]} 10.
O-O {[%clk 01:32:00]} {[%emt 00:00:52]} Bd6 {[%clk 01:30:41]} {[%emt 00:00:10]}
11. Re1 {[%clk 01:31:28]} {[%emt 00:01:01]} O-O {[%clk 01:30:53]} {[%emt
00:00:19]} 12. Nd2 {[%clk 01:30:59]} {[%emt 00:00:57]} Qc7 {[%clk 01:27:45]}
{[%emt 00:03:39]} 13. Nf3 {[%clk 01:29:10]} {[%emt 00:02:18]} h6 {[%clk
01:25:23]} {[%emt 00:02:53]} 14. Qe2 {[%clk 01:24:38]} {[%emt 00:05:02]} Ne4
{[%clk 01:24:48]} {[%emt 00:01:05]} 15. h3 {[%clk 01:22:17]} {[%emt 00:02:51]}
b5 {[%clk 01:16:14]} {[%emt 00:09:04]} 16. Bc2 {[%emt 00:00:32]} f5 {[%clk
01:16:29]} {[%emt 00:00:13]} 17. Nd2 {[%clk 01:21:56]} {[%emt 00:00:51]} Nxd4
{[%clk 01:15:46]} {[%emt 00:01:14]} 18. cxd4 {[%emt 00:02:36]} Qxc2 {[%clk
01:16:07]} {[%emt 00:00:07]} 19. f3 {[%clk 01:19:23]} {[%emt 00:00:57]} Ng5
{[%clk 01:03:01]} {[%emt 00:13:37]} 20. h4 {[%clk 01:05:32]} {[%emt 00:14:20]}
Nf7 {[%clk 01:03:00]} {[%emt 00:00:31]} 21. Nb3 {[%clk 00:58:23]} {[%emt
00:07:39]} Qxe2 {[%clk 00:54:59]} {[%emt 00:08:32]} 22. Rxe2 {[%clk 00:58:41]}
{[%emt 00:00:11]} Bg3 {[%clk 00:54:32]} {[%emt 00:00:57]} 23. Bd2 {[%clk
00:57:49]} {[%emt 00:01:22]} Bxh4 {[%clk 00:51:31]} {[%emt 00:03:31]} 24. Rxe6
{[%clk 00:57:57]} {[%emt 00:00:22]} Rfe8 {[%clk 00:51:56]} {[%emt 00:00:06]} 25.
Rc6 {[%clk 00:56:56]} {[%emt 00:01:31]} Re2 {[%clk 00:43:16]} {[%emt 00:09:09]}
26. Rac1 {[%clk 00:47:16]} {[%emt 00:10:10]} a5 {[%clk 00:40:48]} {[%emt
00:02:58]} 27. Bxa5 {[%clk 00:39:36]} {[%emt 00:08:09]} Rxb2 {[%clk 00:40:28]}
{[%emt 00:00:49]} 28. R6c2 {[%clk 00:39:03]} {[%emt 00:01:04]} Rxb3 {[%clk
00:23:19]} {[%emt 00:17:39]} 29. Rc8+ {[%clk 00:38:42]} {[%emt 00:00:50]} Kh7
{[%clk 00:23:39]} {[%emt 00:00:12]} 30. Rxa8 {[%clk 00:38:44]} {[%emt
00:00:28]} Ra3 {[%clk 00:24:01]} {[%emt 00:00:07]} 31. Rf8 {[%clk 00:38:29]}
{[%emt 00:00:42]} Rxa5 {[%clk 00:18:01]} {[%emt 00:06:34]} 32. Rxf7 {[%clk
00:37:45]} {[%emt 00:01:13]} Bf6 {[%clk 00:18:23]} {[%emt 00:00:09]} 33. Rd1
{[%clk 00:32:40]} {[%emt 00:05:36]} Rxa2 {[%clk 00:18:02]} {[%emt 00:00:51]} 34.
Rd7 {[%clk 00:30:01]} {[%emt 00:03:08]} b4 {[%clk 00:17:26]} {[%emt 00:01:06]}
35. Rb7 {[%clk 00:28:38]} {[%emt 00:01:53]} Rb2 {[%clk 00:12:20]} {[%emt
00:05:37]} 36. Kh2 {[%clk 00:27:35]} {[%emt 00:01:33]} Bg5 {[%clk 00:12:38]}
{[%emt 00:00:12]} 37. Rd3 {[%clk 00:26:15]} {[%emt 00:01:49]} h5 {[%clk
00:11:42]} {[%emt 00:01:26]} 38. Rf7 {[%clk 00:22:50]} {[%emt 00:03:56]} Kg6
{[%clk 00:11:49]} {[%emt 00:00:23]} 39. Rd7 {[%clk 00:23:03]} {[%emt 00:00:16]}
Bf4+ {[%clk 00:10:06]} {[%emt 00:02:13]} 40. Kg1 {[%clk 00:21:55]} {[%emt
00:01:39]} Bg3 {[%clk 00:10:00]} {[%emt 00:00:36]} 41. Kf1 {[%clk 00:21:12]}
{[%emt 00:01:12]} Rb1+ {[%clk 00:04:08]} {[%emt 00:06:23]} 42. Ke2 {[%clk
00:21:21]} {[%emt 00:00:21]} Re1+ {[%clk 00:04:27]} {[%emt 00:00:11]} 43. Kd2
{[%clk 00:21:33]} {[%emt 00:00:17]} Rg1 {[%clk 00:04:54]} {[%emt 00:00:03]} 44.
Kc2 {[%clk 00:21:15]} {[%emt 00:00:48]} Rxg2+ {[%clk 00:05:01]} {[%emt
00:00:23]} 45. Kb3 {[%clk 00:21:42]} {[%emt 00:00:03]} h4 {[%clk 00:04:55]}
{[%emt 00:00:37]} 46. Rxd5 {[%clk 00:21:36]} {[%emt 00:00:36]} h3 {[%clk
00:05:11]} {[%emt 00:00:14]} 1/2-1/2

[Event "1er Festival international de Cassis 2022"]
[Site "Cassis"]
[Date "2022.05.26"]
[Round "2.1"]
[White "Avanesyan, Davit"]
[Black "Gozzoli, Yannick"]
[Result "0-1"]
[TimeControl "1 h 30 + 30 s"]
[WhiteElo "2131"]
[BlackElo "2591"]

1. e4 {[%clk 01:30:57]} {[%emt 00:00:03]} Nf6 {[%clk 01:30:23]} {[%emt
00:00:36]} 2. e5 {[%clk 01:31:23]} {[%emt 00:00:05]} Nd5 {[%clk 01:30:48]}
{[%emt 00:00:05]} 3. Nc3 {[%clk 01:31:50]} {[%emt 00:00:04]} Nxc3 {[%clk
01:30:47]} {[%emt 00:00:30]} 4. bxc3 {[%clk 01:32:16]} {[%emt 00:00:04]} d5
{[%clk 01:30:49]} {[%emt 00:00:28]} 5. d4 {[%clk 01:32:41]} {[%emt 00:00:05]}
c5 {[%clk 01:30:59]} {[%emt 00:00:19]} 6. Nf3 {[%clk 01:33:07]} {[%emt
00:00:05]} Nc6 {[%clk 01:31:13]} {[%emt 00:00:16]} 7. Be2 {[%clk 01:32:21]}
{[%emt 00:01:16]} Bg4 {[%clk 01:30:32]} {[%emt 00:01:10]} 8. O-O {[%clk
01:31:22]} {[%emt 00:01:29]} e6 {[%clk 01:25:39]} {[%emt 00:05:23]} 9. Rb1
{[%clk 01:26:57]} {[%emt 00:04:56]} Rb8 {[%clk 01:25:04]} {[%emt 00:01:05]} 10.
Bb5 {[%clk 01:21:55]} {[%emt 00:05:32]} Be7 {[%clk 01:20:40]} {[%emt 00:04:54]}
11. Ba3 {[%clk 01:17:14]} {[%emt 00:05:11]} O-O {[%clk 01:20:13]} {[%emt
00:00:57]} 12. Bxc6 {[%clk 01:09:08]} {[%emt 00:08:36]} bxc6 {[%clk 01:18:35]}
{[%emt 00:02:07]} 13. dxc5 {[%clk 01:09:16]} {[%emt 00:00:23]} Rxb1 {[%clk
01:14:29]} {[%emt 00:04:36]} 14. Qxb1 {[%clk 01:09:42]} {[%emt 00:00:04]} Bxf3
{[%clk 01:14:54]} {[%emt 00:00:05]} 15. gxf3 {[%clk 01:10:10]} {[%emt
00:00:02]} Qc7 {[%clk 01:15:16]} {[%emt 00:00:07]} 16. f4 {[%clk 01:06:45]}
{[%emt 00:03:55]} f6 {[%clk 01:10:51]} {[%emt 00:04:55]} 17. Qe1 {[%clk
01:06:52]} {[%emt 00:00:23]} Qa5 {[%clk 01:10:40]} {[%emt 00:00:40]} 18. Bb4
{[%clk 01:04:57]} {[%emt 00:02:25]} Qb5 {[%clk 01:09:07]} {[%emt 00:02:02]} 19.
a4 {[%clk 01:04:57]} {[%emt 00:00:31]} Qc4 {[%clk 01:09:17]} {[%emt 00:00:20]}
20. Qe3 {[%clk 01:02:01]} {[%emt 00:03:27]} a5 {[%clk 01:09:38]} {[%emt
00:00:08]} 21. Bxa5 {[%clk 01:02:15]} {[%emt 00:00:16]} Bxc5 {[%clk 01:10:03]}
{[%emt 00:00:05]} 22. Qh3 {[%clk 01:01:00]} {[%emt 00:01:46]} fxe5 {[%clk
01:02:09]} {[%emt 00:08:24]} 23. Qxe6+ {[%clk 00:57:18]} {[%emt 00:04:13]} Kh8
{[%clk 00:59:47]} {[%emt 00:02:51]} 24. Bc7 {[%clk 00:55:08]} {[%emt 00:02:39]}
Qxf4 {[%clk 00:58:55]} {[%emt 00:01:21]} 25. Qh3 {[%clk 00:55:32]} {[%emt
00:00:06]} Rf5 {[%clk 00:39:50]} {[%emt 00:19:35]} 26. Kh1 {[%clk 00:53:37]}
{[%emt 00:02:25]} h6 {[%clk 00:39:54]} {[%emt 00:00:27]} 27. Rg1 {[%clk
00:47:09]} {[%emt 00:06:58]} Qxf2 {[%clk 00:39:04]} {[%emt 00:01:19]} 28. Rd1
{[%clk 00:45:15]} {[%emt 00:02:25]} Rg5 {[%clk 00:39:06]} {[%emt 00:00:28]} 29.
Qf1 {[%clk 00:44:38]} {[%emt 00:01:07]} Rg1+ {[%clk 00:39:30]} {[%emt
00:00:05]} 0-1

[Event "1er Festival international de Cassis 2022"]
[Site "Cassis"]
[Date "2022.05.26"]
[Round "2.2"]
[White "Kunin, Vitaly"]
[Black "Jober, Robert"]
[Result "1-0"]
[TimeControl "1 h 30 + 30 s"]
[WhiteElo "2539"]
[BlackElo "2073"]

1. d4 {[%clk 01:16:20]} {[%emt 00:14:25]} Nf6 {[%clk 01:30:54]} {[%emt
00:00:20]} 2. c4 {[%clk 01:16:15]} {[%emt 00:00:35]} c5 {[%clk 01:31:02]}
{[%emt 00:00:23]} 3. d5 {[%clk 01:16:36]} {[%emt 00:00:09]} b5 {[%clk
01:31:20]} {[%emt 00:00:13]} 4. cxb5 {[%clk 01:16:51]} {[%emt 00:00:15]} a6
{[%clk 01:31:42]} {[%emt 00:00:08]} 5. b6 {[%clk 01:16:56]} {[%emt 00:00:25]}
e6 {[%clk 01:32:02]} {[%emt 00:00:09]} 6. Nc3 {[%clk 01:17:21]} {[%emt
00:00:05]} exd5 {[%clk 01:32:14]} {[%emt 00:00:18]} 7. Nxd5 {[%clk 01:17:44]}
{[%emt 00:00:06]} Nxd5 {[%clk 01:32:37]} {[%emt 00:00:07]} 8. Qxd5 {[%clk
01:18:07]} {[%emt 00:00:07]} Nc6 {[%clk 01:33:02]} {[%emt 00:00:05]} 9. e4
{[%clk 01:18:07]} {[%emt 00:00:29]} Be7 {[%clk 01:33:21]} {[%emt 00:00:12]} 10.
Bc4 {[%clk 01:17:36]} {[%emt 00:01:02]} O-O {[%clk 01:33:37]} {[%emt 00:00:14]}
11. Nf3 {[%clk 01:17:37]} {[%emt 00:00:29]} Rb8 {[%clk 01:14:11]} {[%emt
00:19:57]} 12. O-O {[%clk 01:13:50]} {[%emt 00:04:15]} Rxb6 {[%clk 01:13:05]}
{[%emt 00:01:38]} 13. Qh5 {[%clk 00:59:22]} {[%emt 00:14:57]} d6 {[%clk
00:59:52]} {[%emt 00:13:43]} 14. b3 {[%clk 00:55:11]} {[%emt 00:04:41]} Be6
{[%clk 00:55:14]} {[%emt 00:05:08]} 15. Bxe6 {[%clk 00:36:59]} {[%emt
00:18:43]} fxe6 {[%clk 00:55:34]} {[%emt 00:00:09]} 16. Qg4 {[%clk 00:37:09]}
{[%emt 00:00:16]} Rf6 {[%clk 00:38:15]} {[%emt 00:17:53]} 17. Bd2 {[%clk
00:32:54]} {[%emt 00:04:44]} Rg6 {[%clk 00:35:34]} {[%emt 00:03:11]} 18. Qh3
{[%clk 00:29:58]} {[%emt 00:03:27]} Qe8 {[%clk 00:35:32]} {[%emt 00:00:32]} 19.
Rad1 {[%clk 00:29:59]} {[%emt 00:00:29]} Bf6 {[%clk 00:33:43]} {[%emt
00:02:20]} 20. Bf4 {[%clk 00:29:13]} {[%emt 00:01:15]} Nd4 {[%clk 00:33:49]}
{[%emt 00:00:24]} 21. Nxd4 {[%clk 00:29:32]} {[%emt 00:00:11]} Bxd4 {[%clk
00:34:09]} {[%emt 00:00:11]} 22. Be3 {[%clk 00:29:24]} {[%emt 00:00:37]} e5
{[%clk 00:34:05]} {[%emt 00:00:34]} 23. Bxd4 {[%clk 00:29:17]} {[%emt
00:00:37]} exd4 {[%clk 00:31:40]} {[%emt 00:02:56]} 24. Qd3 {[%clk 00:15:41]}
{[%emt 00:14:05]} Qb5 {[%clk 00:27:50]} {[%emt 00:04:19]} 25. Qc2 {[%clk
00:15:49]} {[%emt 00:00:23]} Re6 {[%clk 00:27:57]} {[%emt 00:00:24]} 26. f3
{[%clk 00:14:00]} {[%emt 00:02:18]} Rb7 {[%clk 00:26:58]} {[%emt 00:01:29]} 27.
b4 {[%clk 00:13:37]} {[%emt 00:00:52]} Ree7 {[%clk 00:23:25]} {[%emt 00:04:03]}
28. bxc5 {[%clk 00:12:48]} {[%emt 00:01:20]} dxc5 {[%clk 00:22:15]} {[%emt
00:01:39]} 29. Rb1 {[%clk 00:12:22]} {[%emt 00:00:56]} Qc6 {[%clk 00:22:06]}
{[%emt 00:00:38]} 30. Qc4+ {[%clk 00:12:45]} {[%emt 00:00:07]} Kh8 {[%clk
00:22:04]} {[%emt 00:00:32]} 31. Rfc1 {[%clk 00:11:47]} {[%emt 00:01:28]} Rxb1
{[%clk 00:13:37]} {[%emt 00:08:57]} 32. Rxb1 {[%clk 00:12:04]} {[%emt
00:00:13]} Rc7 {[%clk 00:12:39]} {[%emt 00:01:29]} 33. a4 {[%clk 00:06:26]}
{[%emt 00:06:08]} h6 {[%clk 00:06:26]} {[%emt 00:06:42]} 34. e5 {[%clk
00:06:49]} {[%emt 00:00:07]} Kh7 {[%clk 00:03:42]} {[%emt 00:03:15]} 35. a5
{[%clk 00:05:34]} {[%emt 00:01:44]} Rb7 {[%clk 00:02:25]} {[%emt 00:01:47]} 36.
Rc1 {[%clk 00:05:38]} {[%emt 00:00:26]} Rb2 {[%clk 00:00:40]} {[%emt 00:02:15]}
37. Qxd4 {[%clk 00:04:25]} {[%emt 00:01:43]} cxd4 {[%clk 00:00:37]} {[%emt
00:00:33]} 38. Rxc6 {[%clk 00:04:43]} {[%emt 00:00:12]} d3 {[%clk 00:00:45]}
{[%emt 00:00:22]} 39. Rd6 {[%clk 00:05:03]} {[%emt 00:00:10]} d2 {[%clk
00:00:00]} 1-0